bitfinex/quotes_SOLUSD_20240808
["timestamp","ask_amount","ask_price","bid_price","bid_amount"]
[1723101333325,0.34,154.83,154.72,65.0]
[1723101334111,6.4592,154.82,154.71,36.08]
[1723101334430,45.34,154.81,154.68,37.37228972]
[1723101334799,45.34,154.81,154.68,36.08]
[1723101335104,31.22110374,154.8,154.67,6.6217]
[1723101335307,0.17,154.79,154.67,7.91419108]
[1723101335509,0.34,154.79,154.68,1.29239685]
[1723101336324,0.34,154.79,154.68,65.0]
[1723101336724,6.8003,154.79,154.68,20.0]
[1723101336908,71.8003,154.79,154.68,20.0]
[1723101337104,81.50994539,154.79,154.68,20.0]
[1723101337326,24.76074539,154.8,154.68,20.0]
[1723101337519,15.0511,154.8,154.68,20.0]
[1723101337721,24.76074539,154.8,154.68,20.0]
[1723101337917,31.22074539,154.8,154.68,20.0]
[1723101338427,0.17,154.79,154.68,20.0]
[1723101338637,45.34,154.79,154.68,20.0]
[1723101339204,0.34,154.79,154.68,20.0]
[1723101340221,15.0511,154.8,154.69,46.29242868]
[1723101340530,15.0511,154.8,154.7,20.0]
[1723101340731,15.0511,154.8,154.71,45.0]
[1723101341026,15.0511,154.8,154.72,20.0]
[1723101341410,0.17,154.79,154.72,20.0]
[1723101342131,0.34,154.79,154.72,20.0]
[1723101342823,15.8283,154.84,154.73,1.2922341]
[1723101343130,15.8283,154.84,154.73,45.0]
[1723101343830,15.8283,154.84,154.74,21.29205081]
[1723101344015,15.8283,154.84,154.75,45.0]
[1723101344217,0.34,154.83,154.76,1.29193363]
[1723101344402,16.14692448,154.86,154.77,1.29193575]
[1723101344609,16.4416,154.88,154.77,102.37193575]
[1723101344819,6.0915,154.9,154.77,102.37193575]
[1723101345134,16.1962,154.92,154.8,36.08]
[1723101345311,16.1962,154.92,154.81,66.29117992]
[1723101347427,0.17,154.91,154.81,66.29117992]
[1723101347623,0.17,154.93,154.81,66.29117992]
[1723101347809,0.34,154.93,154.81,66.29117992]
[1723101348015,22.26582926,154.94,154.81,66.29117992]
[1723101348016,9.70182926,154.94,154.81,66.29117992]
[1723101348411,9.70182926,154.95,154.81,66.29117992]
[1723101349265,9.7006185,154.95,154.81,66.29117992]
[1723101349535,0.17,154.94,154.83,16.6406]
[1723101349706,9.8706185,154.95,154.84,66.29099551]
[1723101350114,0.17,154.95,154.84,66.29099551]
[1723101350309,31.3720185,154.96,154.84,66.29099551]
[1723101350510,6.0,154.96,154.84,66.29099551]
[1723101350823,6.0,154.96,154.86,36.08]
[1723101351019,6.0,154.96,154.87,66.46063826]
[1723101352246,6.0,154.96,154.89,36.08]
[1723101352420,6.0,154.96,154.9,66.46045406]
[1723101353319,6.0,154.96,154.92,36.08]
[1723101353518,6.0,154.96,154.93,45.0]
[1723101353729,6.0,154.96,154.94,1.29044466]
[1723101354333,6.0,154.96,154.91,22.16]
[1723101354523,6.0,154.96,154.91,7.64454451]
[1723101355028,6.0,154.96,154.91,6.3539]
[1723101356238,6.0,154.96,154.92,1.29073023]
[1723101356453,6.0,154.96,154.92,1.2906133]
[1723101356816,6.0,154.96,154.93,1.2906504]
[1723101357024,6.0,154.96,154.94,1.29020009]
[1723101357221,6.0,154.96,154.91,27.64410008]
[1723101357430,6.0,154.96,154.92,45.0]
[1723101357833,6.0,154.96,154.93,20.0]
[1723101358014,6.0,154.96,154.94,45.0]
[1723101358215,6.0,154.96,154.91,26.3539]
[1723101358645,6.0,154.96,154.92,1.29060929]
[1723101358930,6.0,154.96,154.87,7.6846726]
[1723101359244,6.0,154.96,154.87,6.3939]
[1723101359444,6.0,154.96,154.88,0.61717464]
[1723101359818,6.0,154.96,154.89,1.29064674]
[1723101360235,6.0,154.96,154.9,1.29064802]
[1723101361043,6.0,154.96,154.9,46.29064802]
[1723101361241,6.0,154.96,154.91,20.0]
[1723101361451,6.0,154.96,154.92,45.0]
[1723101361626,6.0,154.96,154.92,46.29055878]
[1723101361826,6.0,154.96,154.93,21.29044647]
[1723101362027,6.0,154.96,154.94,45.0]
[1723101362227,6.0,154.96,154.94,46.29041114]
[1723101362627,5.6,154.96,154.94,46.29041114]
[1723101362827,5.6,154.96,154.95,26.3392]
[1723101363035,5.6,154.96,154.95,71.5092]
[1723101363232,5.6,154.96,154.9,6.3392]
[1723101363435,5.6,154.96,154.91,1.29054637]
[1723101364738,5.6,154.96,154.91,66.29054637]
[1723101365943,5.6,154.96,154.91,21.29054637]
[1723101366457,0.8457099,155.11,154.96,25.6159]
[1723101366636,0.8457099,155.11,155.02,36.08]
[1723101366835,0.8457099,155.11,155.05,70.8878]
[1723101367147,0.8457099,155.11,155.06,20.0]
[1723101367462,0.8457099,155.11,155.07,46.62894953]
[1723101367643,0.8457099,155.11,155.08,1.28911844]
[1723101367844,0.8457099,155.11,155.08,21.28911844]
[1723101368029,0.8457099,155.11,155.09,45.0]
[1723101368234,0.8457099,155.11,155.1,21.28898063]
[1723101368435,0.8457099,155.11,155.1,66.28898063]
[1723101368953,0.8457099,155.11,155.1,65.0]
[1723101370137,0.8457099,155.11,155.06,8.28127536]
[1723101370344,0.8457099,155.11,155.05,37.36922418]
[1723101371254,0.8457099,155.11,155.05,36.08]
[1723101371462,0.8457099,155.11,155.04,6.2354]
[1723101371962,0.8457099,155.11,155.02,1.28929714]
[1723101372749,0.8457099,155.11,155.01,1.28951348]
[1723101372944,0.8457099,155.11,155.02,1.28957982]
[1723101373657,0.8457099,155.11,155.01,1.28935821]
[1723101373866,0.8457099,155.11,155.02,37.36949479]
[1723101374236,0.8457099,155.11,155.02,36.08]
[1723101374463,0.8457099,155.11,155.02,1.28952992]
[1723101374664,0.8457099,155.11,155.01,1.28950857]
[1723101375043,0.8457099,155.11,155.02,1.28953185]
[1723101375363,0.8457099,155.11,155.02,21.28953284]
[1723101375568,0.8457099,155.11,155.03,45.0]
[1723101375863,0.8457099,155.11,155.04,20.0]
[1723101376057,0.8457099,155.11,155.05,45.0]
[1723101376365,0.8457099,155.11,155.06,20.0]
[1723101376567,0.8457099,155.11,155.07,45.0]
[1723101376943,0.8457099,155.11,155.06,20.0]
[1723101377167,0.8457099,155.11,155.01,20.0]
[1723101377368,0.8457099,155.11,155.02,45.0]
[1723101377542,0.17,155.1,155.03,1.28947856]
[1723101377735,0.8457099,155.11,155.01,1.28973666]
[1723101377966,0.17,155.1,155.01,1.28955671]
[1723101378167,0.8457099,155.11,155.01,1.28955671]
[1723101378369,0.17,155.1,155.0,7.3027008]
[1723101378666,0.34,155.1,155.0,7.3027008]
[1723101379252,0.34,155.1,155.01,20.0]
[1723101379465,0.8457099,155.11,155.02,1.28964487]
[1723101380479,0.8457099,155.11,155.03,0.17]
[1723101380650,0.8457099,155.11,155.04,1.28932179]
[1723101380972,0.8457099,155.11,155.04,45.0]
[1723101381153,0.8457099,155.11,155.05,20.0]
[1723101381354,0.8457099,155.11,155.01,1.28946393]
[1723101381659,0.34,155.1,155.01,1.28946393]
[1723101381849,0.34,155.1,155.02,1.28967673]
[1723101382476,0.8457099,155.11,155.02,1.28967673]
[1723101383171,0.8457099,155.11,155.01,20.0]
[1723101383343,0.8457099,155.11,155.02,45.17]
[1723101383544,0.8457099,155.11,155.03,20.0]
[1723101383950,0.8457099,155.11,155.03,20.7705426]
[1723101384249,0.8457099,155.11,155.04,45.0]
[1723101384460,0.8457099,155.11,155.05,0.77051516]
[1723101384663,0.8457099,155.11,155.05,20.77051516]
[1723101384974,0.8457099,155.11,155.06,45.0]
[1723101385273,0.8457099,155.11,155.07,20.0]
[1723101385582,0.8457099,155.11,155.06,1.28927422]
[1723101385745,0.8457099,155.11,155.02,36.08]
[1723101385746,0.8457099,155.11,155.03,20.0]
[1723101386153,0.8457099,155.11,155.04,1.28927731]
[1723101386371,0.8457099,155.11,155.05,1.28919415]
[1723101386873,0.8457099,155.11,155.04,45.0]
[1723101387040,0.8457099,155.11,155.05,20.0]
[1723101387246,0.8457099,155.11,155.06,45.0]
[1723101387470,0.8457099,155.11,155.07,20.0]
[1723101387653,0.8457099,155.11,155.06,45.0]
[1723101389073,0.8457099,155.11,155.07,21.28920891]
[1723101389248,0.8457099,155.11,155.09,6.2397]
[1723101389452,0.8457099,155.11,155.1,66.28886218]
[1723101389651,0.8457099,155.11,155.1,65.0]
[1723101390880,0.8457099,155.11,155.1,21.28902103]
[1723101391084,0.8457099,155.11,155.06,21.28884989]
[1723101391249,0.8457099,155.11,155.07,0.34]
[1723101391579,0.8457099,155.11,155.07,1.28895304]
[1723101391874,0.8457099,155.11,155.06,21.28913026]
[1723101392055,0.8457099,155.11,155.03,1.28917986]
[1723101392782,0.8457099,155.11,155.02,37.36931148]
[1723101394248,0.8457099,155.11,155.03,45.0]
[1723101394453,0.8457099,155.11,155.04,1.28933606]
[1723101395076,0.8457099,155.11,155.03,45.0]
[1723101395250,0.8457099,155.11,155.04,20.0]
[1723101395459,0.8457099,155.11,155.05,45.0]
[1723101395669,0.8457099,155.11,155.06,20.0]
[1723101396273,0.8457099,155.11,155.07,45.0]
[1723101396578,0.8457099,155.11,155.06,20.0]
[1723101396768,0.8457099,155.11,155.03,20.0]
[1723101397685,15.4795,155.1,155.0,7.32858751]
[1723101397858,15.6495,155.1,155.0,7.32858751]
[1723101398361,15.4795,155.1,155.0,7.32858751]
[1723101398882,15.4795,155.1,155.02,36.08]
[1723101399191,15.4795,155.1,155.03,21.45923798]
[1723101399356,0.8457099,155.11,155.04,0.17]
[1723101399754,0.8457099,155.11,155.04,1.45917468]
[1723101400155,0.8457099,155.11,155.04,0.17]
[1723101401197,0.8457099,155.11,155.04,1.28923225]
[1723101401485,0.17,155.1,155.01,1.28915188]
[1723101401659,0.8457099,155.11,155.02,1.28959198]
[1723101401858,0.34,155.1,155.02,1.28959198]
[1723101402065,0.17,155.1,155.02,1.28959198]
[1723101402381,0.8457099,155.11,155.02,1.28959198]
[1723101402382,10.53574942,155.11,155.02,1.28959198]
[1723101402765,10.53574942,155.11,155.0,6.0391]
[1723101402766,0.8457099,155.11,155.0,6.0391]
[1723101402968,0.8457099,155.11,155.01,1.28946719]
[1723101403277,0.8457099,155.11,155.01,45.0]
[1723101403484,0.8457099,155.11,155.02,57.11916121]
[1723101403679,0.8457099,155.11,155.03,45.0]
[1723101403883,0.8457099,155.11,155.04,20.17]
[1723101404199,0.8457099,155.11,155.05,82.36925855]
[1723101404369,0.8457099,155.11,155.06,20.0]
[1723101404564,0.8457099,155.11,155.07,45.0]
[1723101404770,0.8457099,155.11,155.08,20.42236195]
[1723101405087,0.8457099,155.11,155.09,45.0]
[1723101405399,0.8457099,155.11,155.1,20.0]
[1723101405568,0.8457099,155.11,155.1,65.0]
[1723101407788,0.8457099,155.11,155.1,20.0]
[1723101407979,0.8457099,155.11,155.06,20.0]
[1723101409290,0.8457099,155.11,155.07,45.0]
[1723101409488,0.8457099,155.11,155.08,20.0]
[1723101409682,0.8457099,155.11,155.09,45.0]
[1723101409990,0.8457099,155.11,155.1,20.0]
[1723101410382,0.8457099,155.11,155.1,65.0]
[1723101410693,0.8457099,155.11,155.1,20.0]
[1723101410990,0.8457099,155.11,155.05,36.08]
[1723101411294,0.8457099,155.11,155.06,66.28927873]
[1723101411795,0.8457099,155.11,155.06,65.0]
[1723101412879,0.8457099,155.11,155.06,66.28913082]
[1723101413277,0.8457099,155.11,155.06,65.0]
[1723101413479,0.8457099,155.11,155.06,20.0]
[1723101413714,0.8457099,155.11,155.08,27.97]
[1723101413901,0.8457099,155.11,155.09,20.0]
[1723101415200,0.8457099,155.11,155.1,27.97]
[1723101415370,0.8457099,155.11,155.1,92.97]
[1723101419688,9.28,155.2,155.1,122.39882543]
[1723101419885,9.28,155.2,155.16,27.97]
[1723101422290,9.28,155.2,155.14,27.97]
[1723101422975,9.28,155.2,155.12,27.97]
[1723101423177,0.34,155.19,155.12,27.97]
[1723101423406,21.3085,155.18,155.1,27.97]
[1723101423578,0.34,155.17,155.1,27.97]
[1723101423995,0.17,155.17,155.1,27.97]
[1723101424195,9.28,155.2,155.15,27.97]
[1723101424399,25.26,155.21,155.19,55.94]
[1723101424591,25.26,155.21,155.2,27.97]
[1723101425587,25.26,155.21,155.2,27.18845956]
[1723101425795,25.26,155.21,155.18,27.97]
[1723101425982,25.26,155.21,155.19,1.28846567]
[1723101426187,25.26,155.21,155.18,27.97]
[1723101426491,25.26,155.21,155.19,45.0]
[1723101426689,25.26,155.21,155.19,1.28831263]
[1723101428100,25.26,155.21,155.18,72.97]
[1723101428294,40.6088,155.21,155.13,27.97]
[1723101428495,40.6088,155.21,155.12,1.28864521]
[1723101428692,68.5788,155.21,155.13,1.28867298]
[1723101428879,40.6088,155.21,155.11,1.28867298]
[1723101429078,40.6088,155.21,155.1,1.28873262]
[1723101429394,0.17,155.2,155.09,27.97]
[1723101429594,0.34,155.2,155.09,27.97]
[1723101429794,27.97,155.19,155.07,27.97]
[1723101429987,0.17,155.18,155.07,27.97]
[1723101430191,27.97,155.19,155.08,1.28915063]
[1723101430401,27.97,155.19,155.07,27.97]
[1723101430596,0.34,155.18,155.07,27.97]
[1723101431007,27.97,155.19,155.08,0.99286776]
[1723101431212,27.97,155.19,155.08,20.99286776]
[1723101431508,40.6088,155.21,155.08,21.28893128]
[1723101431808,40.6088,155.21,155.09,1.28893128]
[1723101432180,40.6088,155.21,155.08,20.0]
[1723101432380,40.6088,155.21,155.05,21.28906455]
[1723101432605,76.5588,155.21,155.05,1.28906455]
[1723101433005,6.4452,155.16,155.03,1.28915821]
[1723101433201,65.34,155.2,155.03,1.28915821]
[1723101433587,6.4441,155.18,155.03,1.28915821]
[1723101433788,0.34,155.17,155.03,1.28915821]
[1723101434003,0.17,155.17,155.03,1.28915821]
[1723101434388,0.17,155.17,155.03,20.69915821]
[1723101434585,0.17,155.17,155.04,20.0]
[1723101434800,0.17,155.17,155.05,1.28899202]
[1723101435019,0.17,155.17,155.05,46.28899202]
[1723101435218,0.17,155.17,155.06,20.0]
[1723101435422,6.445,155.16,155.05,45.0]
[1723101435589,6.4434,155.2,155.06,1.2893183]
[1723101435918,25.26,155.21,155.13,35.95]
[1723101436082,25.26,155.21,155.14,46.45847452]
[1723101436287,25.26,155.21,155.15,1.28839147]
[1723101436526,25.26,155.21,155.16,0.17]
[1723101436815,25.26,155.21,155.16,1.6283758]
[1723101437015,25.26,155.21,155.16,46.6283758]
[1723101437193,25.26,155.21,155.17,20.0]
[1723101437506,25.26,155.21,155.18,46.28837626]
[1723101437814,25.26,155.21,155.19,20.0]
[1723101438111,25.26,155.21,155.19,1.288385]
[1723101438419,25.26,155.21,155.18,45.0]
[1723101440403,25.26,155.21,155.19,20.0]
[1723101440730,25.26,155.21,155.18,45.0]
[1723101440919,25.26,155.21,155.14,7.59402026]
[1723101441236,25.26,155.21,155.15,66.28846645]
[1723101442204,25.26,155.21,155.09,6.4554]
[1723101442529,25.26,155.21,155.1,1.15165071]
[1723101442837,25.26,155.21,155.04,21.74359356]
[1723101442838,6.4437,155.19,155.05,1.2888773]
[1723101443002,51.6767,155.2,155.06,1.28911272]
[1723101443003,6.8467,155.2,155.06,1.28911272]
[1723101443200,6.8467,155.2,155.05,1.2891149]
[1723101443509,6.4437,155.19,155.05,1.2892134]
[1723101443711,0.17,155.18,155.05,1.2892134]
[1723101443916,0.34,155.18,155.05,1.2892134]
[1723101444318,6.7842,155.18,155.06,6.5067]
[1723101444518,389.1,155.17,155.06,6.5067]
[1723101444727,60.5308,155.16,155.02,1.28931697]
[1723101444931,66.9757,155.16,155.0,1.28950625]
[1723101445207,6.4454,155.15,155.0,1.28950625]
[1723101445428,0.34,155.14,155.0,1.28950625]
[1723101445919,0.34,155.15,155.0,1.28950625]
[1723101446533,0.34,155.15,155.0,46.28950625]
[1723101446926,6.7855,155.15,155.0,1.28950625]
[1723101447108,6.7855,155.15,155.0,21.28963434]
[1723101447544,0.34,155.15,155.0,21.28963434]
[1723101447744,6.7854,155.15,155.0,21.28963434]
[1723101447923,389.1,155.14,155.0,21.28963434]
[1723101448223,0.34,155.13,155.0,21.28963434]
[1723101448842,389.1,155.14,155.01,0.17]
[1723101449032,389.1,155.14,155.02,1.28941039]
[1723101449434,389.1,155.14,155.03,19.58]
[1723101449632,389.1,155.14,155.04,65.0]
[1723101449832,389.1,155.14,155.05,1.28927733]
[1723101451130,25.26,155.21,155.12,35.95]
[1723101451359,25.26,155.21,155.15,35.95]
[1723101451653,25.26,155.21,155.16,66.62834331]
[1723101451828,25.26,155.21,155.16,66.28834331]
[1723101459244,25.26,155.21,155.16,85.69834331]
[1723101459451,25.26,155.21,155.17,0.34]
[1723101460341,25.26,155.21,155.18,1.28829157]
[1723101460736,25.26,155.21,155.17,0.34]
[1723101460953,25.26,155.21,155.19,0.17]
[1723101461144,25.26,155.21,155.17,1.62822157]
[1723101461867,25.26,155.21,155.17,0.34]
[1723101462239,25.26,155.21,155.18,1.28805554]
[1723101463254,25.26,155.21,155.17,1.28805554]
[1723101463566,25.26,155.21,155.18,1.28805554]
[1723101464338,25.26,155.21,155.17,1.2884069]
[1723101464545,25.26,155.21,155.18,1.28832387]
[1723101465071,25.26,155.21,155.16,65.17]
[1723101465366,25.26,155.21,155.17,1.28816821]
[1723101465563,25.26,155.21,155.16,65.0]
[1723101465953,25.26,155.21,155.17,1.28846881]
[1723101466136,25.26,155.21,155.14,1.2884688]
[1723101466848,25.26,155.21,155.09,35.95]
[1723101467551,25.26,155.21,155.1,1.288738]
[1723101468261,25.26,155.21,155.1,21.288738]
[1723101468460,25.26,155.21,155.1,40.698738]
[1723101468759,25.26,155.21,155.13,19.41]
[1723101468947,25.26,155.21,155.14,40.69843155]
[1723101469146,25.26,155.21,155.15,1.28843155]
[1723101469349,25.26,155.21,155.15,46.28843155]
[1723101469556,25.26,155.21,155.16,20.0]
[1723101469863,25.26,155.21,155.17,46.28843243]
[1723101470077,25.26,155.21,155.18,21.28843243]
[1723101470257,25.26,155.21,155.19,45.0]
[1723101471302,25.26,155.21,155.18,20.0]
[1723101471463,25.26,155.21,155.14,20.17]
[1723101471781,25.26,155.21,155.15,45.0]
[1723101471984,25.26,155.21,155.1,19.41]
[1723101472279,25.26,155.21,155.13,1.28867605]
[1723101472850,25.26,155.21,155.1,19.41]
[1723101472851,25.26,155.21,155.11,1.28856746]
[1723101473279,25.26,155.21,155.1,39.41]
[1723101473485,25.26,155.21,155.11,40.6986794]
[1723101473988,25.26,155.21,155.12,45.0]
[1723101474164,25.26,155.21,155.13,20.0]
[1723101474478,25.26,155.21,155.14,45.0]
[1723101474686,25.26,155.21,155.15,20.0]
[1723101475061,25.26,155.21,155.1,1.28879098]
[1723101475371,25.26,155.21,155.11,1.28874756]
[1723101475582,25.26,155.21,155.09,37.23886415]
[1723101475772,25.26,155.21,155.1,1.28875164]
[1723101476276,25.26,155.21,155.1,21.28875164]
[1723101476786,25.26,155.21,155.11,45.0]
[1723101476980,25.26,155.21,155.12,21.28875152]
[1723101477183,25.26,155.21,155.13,45.0]
[1723101477486,25.26,155.21,155.14,20.0]
[1723101478875,25.26,155.21,155.15,45.0]
[1723101480176,25.26,155.21,155.16,20.0]
[1723101481584,25.26,155.21,155.15,45.0]
[1723101481784,25.26,155.21,155.16,20.0]
[1723101486209,25.26,155.21,155.17,45.0]
[1723101486406,25.26,155.21,155.18,20.0]
[1723101486907,25.26,155.21,155.12,35.95]
[1723101487110,25.26,155.21,155.09,6.9043465]
[1723101487111,25.26,155.21,155.09,42.6843465]
[1723101487282,25.26,155.21,155.1,20.0]
[1723101487485,25.26,155.21,155.1,21.2887697]
[1723101487697,16.2985,155.2,155.12,27.95]
[1723101487912,16.2985,155.2,155.13,20.0]
[1723101490114,6.5948,155.19,155.1,27.95]
[1723101490409,0.17,155.18,155.08,27.95]
[1723101490620,0.17,155.18,155.09,1.28876268]
[1723101491281,0.17,155.18,155.08,27.95]
[1723101491518,0.17,155.18,155.09,20.0]
[1723101492001,0.34,155.18,155.09,20.0]
[1723101492890,0.34,155.18,155.06,34.68609145]
[1723101493219,44.105,155.17,155.06,6.73609145]
[1723101493517,0.34,155.16,155.06,34.68609145]
[1723101493810,0.17,155.16,155.08,27.95]
[1723101494116,0.34,155.16,155.06,34.68609145]
[1723101494304,417.39,155.16,155.06,6.73609145]
[1723101494477,417.39,155.16,155.04,27.95]
[1723101494678,417.39,155.16,155.05,20.0]
[1723101495082,417.39,155.16,154.98,19.41]
[1723101495083,16.2877,155.13,154.98,19.41]
[1723101497901,16.2877,155.13,155.07,20.0]
[1723101498586,16.2877,155.13,155.08,1.28946944]
[1723101498782,16.2877,155.13,155.07,20.0]
[1723101499216,16.2877,155.13,155.08,29.23934321]
[1723101499417,6.5089,155.15,155.1,27.95]
[1723101499720,15.0429,155.17,155.11,20.0]
[1723101501815,15.0429,155.17,155.08,45.0]
[1723101501816,0.17,155.16,155.04,6.4679]
[1723101502118,0.17,155.16,155.06,27.95]
[1723101502313,0.17,155.16,155.07,20.0]
[1723101502526,0.34,155.16,155.07,20.0]
[1723101503012,0.34,155.16,155.01,21.75062507]
[1723101503013,34.7349,155.16,155.04,27.95]
[1723101503226,28.29,155.16,155.04,27.95]
[1723101503389,15.0429,155.17,155.06,27.95]
[1723101503716,15.0429,155.17,155.08,27.95]
[1723101503927,15.0429,155.17,155.09,1.28929272]
[1723101504103,15.0429,155.17,155.1,27.95]
[1723101504307,15.0429,155.17,155.11,20.0]
[1723101505012,15.0429,155.17,155.11,21.28913534]
[1723101505322,15.0429,155.17,155.11,20.0]
[1723101505815,15.0429,155.17,155.08,27.95]
[1723101506026,0.17,155.16,155.06,27.95]
[1723101506202,6.0603,155.15,155.04,27.95]
[1723101506527,45.34,155.14,155.02,27.95]
[1723101506811,15.0832,155.13,155.03,1.28953637]
[1723101506990,0.34,155.12,155.03,1.28953637]
[1723101507693,15.0832,155.13,155.04,27.95]
[1723101508093,15.0832,155.13,155.06,27.95]
[1723101508402,15.0832,155.13,155.08,27.95]
[1723101509624,15.0832,155.13,155.09,20.0]
[1723101510192,15.0832,155.13,155.08,20.0]
[1723101510395,15.0832,155.13,155.06,20.0]
[1723101511204,0.17,155.12,155.06,20.0]
[1723101511906,0.17,155.12,155.02,27.95]
[1723101511907,0.34,155.12,155.03,20.0]
[1723101512306,0.34,155.12,155.04,29.23966081]
[1723101512498,0.17,155.12,155.05,21.28956254]
[1723101512894,15.0832,155.13,155.05,21.28956254]
[1723101513131,15.0832,155.13,155.06,27.95]
[1723101513297,15.0832,155.13,155.07,20.0]
[1723101514421,15.0832,155.13,155.05,21.28959079]
[1723101514603,15.0832,155.13,155.06,45.0]
[1723101514803,15.0832,155.13,155.07,20.0]
[1723101515511,15.0832,155.13,155.06,27.95]
[1723101515716,15.0832,155.13,155.07,65.0]
[1723101515913,15.0832,155.13,155.07,20.0]
[1723101516321,15.0832,155.13,155.05,20.0]
[1723101517331,0.17,155.12,155.05,20.0]
[1723101517633,0.34,155.12,155.05,20.0]
[1723101518740,0.17,155.12,155.05,21.28930039]
[1723101518923,15.0832,155.13,155.05,21.28930039]
[1723101519119,15.0832,155.13,155.06,27.95]
[1723101519320,15.0832,155.13,155.07,66.28942027]
[1723101519524,15.0832,155.13,155.08,27.95]
[1723101519716,15.0832,155.13,155.09,21.28928715]
[1723101521034,15.0832,155.13,155.05,27.95]
[1723101521365,15.0832,155.13,155.06,20.0]
[1723101521709,15.0832,155.13,155.07,27.95]
[1723101521908,15.0832,155.13,155.08,20.0]
[1723101522322,15.0832,155.13,155.09,1.28929857]
[1723101522924,15.0832,155.13,155.09,29.23929857]
[1723101523128,15.7083,155.19,155.12,27.95]
[1723101523741,15.7083,155.19,155.13,20.0]
[1723101524544,15.7083,155.19,155.11,20.0]
[1723101525244,0.17,155.18,155.11,20.0]
[1723101525442,0.34,155.18,155.11,20.0]
[1723101526371,0.34,155.18,155.08,27.95]
[1723101526522,0.34,155.18,155.09,45.0]
[1723101526722,0.34,155.18,155.08,27.95]
[1723101528148,0.34,155.18,155.09,20.0]
[1723101528538,45.34,155.18,155.09,20.0]
[1723101529142,0.34,155.18,155.09,20.0]
[1723101529338,0.34,155.18,155.09,21.28933095]
[1723101529530,404.8083,155.19,155.1,27.95]
[1723101529742,404.8083,155.19,155.11,65.0]
[1723101529958,27.95,155.15,155.02,5.11392689]
[1723101530132,27.95,155.15,155.02,27.95]
[1723101530851,0.17,155.14,155.02,27.95]
[1723101531033,0.34,155.14,155.02,27.95]
[1723101531362,0.34,155.14,155.03,20.0]
[1723101531857,0.34,155.14,155.04,45.0]
[1723101532055,0.34,155.14,155.05,20.0]
[1723101532831,389.1,155.16,155.06,27.95]
[1723101533140,389.1,155.16,155.07,65.0]
[1723101533464,389.1,155.16,155.08,27.95]
[1723101533664,389.1,155.16,155.07,65.0]
[1723101533665,389.1,155.16,155.1,27.95]
[1723101533964,15.5364,155.17,155.11,65.0]
[1723101534167,15.5364,155.17,155.09,20.0]
[1723101534546,15.5364,155.17,155.08,48.91420223]
[1723101534743,15.5364,155.17,155.09,45.0]
[1723101534947,15.5364,155.17,155.1,47.95]
[1723101535139,15.5364,155.17,155.11,45.0]
[1723101535343,15.5364,155.17,155.12,20.0]
[1723101536454,15.5364,155.17,155.12,47.95]
[1723101536652,15.5364,155.17,155.12,20.0]
[1723101537463,15.5364,155.17,155.06,27.95]
[1723101537672,15.5364,155.17,155.07,45.0]
[1723101537844,15.5364,155.17,155.07,65.0]
[1723101537845,0.34,155.16,155.07,65.0]
[1723101540563,15.5364,155.17,155.07,65.0]
[1723101540768,0.34,155.16,155.07,65.0]